fUSD/lending_fUSD_20250421
["ID","MTS","AMOUNT","RATE_DAILY","PERIOD"]
[358575525,1745273492286,-151.0,0.00046027,14]
[358575526,1745273492296,-500.0,0.00046027,7]
[358575527,1745273492306,-500.0,0.00046027,7]
[358575528,1745273492316,-500.0,0.00046027,7]
[358575529,1745273492326,-500.0,0.00046027,7]
[358575530,1745273492335,-500.0,0.00046027,7]
[358575531,1745273492345,-500.0,0.00046027,7]
[358575532,1745273492354,-500.0,0.00046027,7]
[358575533,1745273492364,-969.44,0.00046027,7]
[358575534,1745273492373,-500.0,0.00046027,7]
[358575535,1745273492383,-500.0,0.00046027,7]
[358575536,1745273492395,-500.0,0.00046027,7]
[358575537,1745273492406,-500.0,0.00046027,7]
[358575538,1745273492415,-500.0,0.00046027,7]
[358575539,1745273492425,-500.0,0.00046027,7]
[358575540,1745273492437,-151.0,0.00046027,14]
[358575541,1745273492446,-500.0,0.00046027,7]
[358575542,1745273492456,-629.509786,0.00046027,7]
[358575543,1745273492467,-690.93,0.00046027,7]
[358575544,1745273492478,-579.48549524,0.00046027,7]
[358575545,1745273492488,-500.0,0.00046027,7]
[358575546,1745273492498,-500.0,0.00046027,7]
[358575547,1745273492507,-593.3,0.00046027,7]
[358575548,1745273492517,-500.0,0.00046027,7]
[358575549,1745273492526,-1494.4,0.00046027,7]
[358575550,1745273492536,-815.18,0.00046027,7]
[358575551,1745273492545,-151.0,0.00046027,14]
[358575552,1745273492556,-407.91224165,0.00046027,7]
[358575553,1745273492566,-2474.26,0.00046027,7]
[358575554,1745273492575,-500.0,0.00046027,7]
[358575555,1745273492584,-847.59,0.00046027,7]
[358575556,1745273492593,-847.27,0.00046027,7]
[358575557,1745273492604,-1385.14,0.00046027,7]
[358575558,1745273492613,-1515.36,0.00046027,7]
[358575559,1745273492623,-710.84,0.00046027,7]
[358575560,1745273492633,-500.0,0.00046027,7]
[358575561,1745273492642,-585.36,0.00046027,7]
[358575562,1745273492652,-540.95,0.00046027,7]
[358575563,1745273492661,-500.0,0.00046027,7]
[358575564,1745273492671,-500.0,0.00046027,7]
[358575565,1745273492680,-2340.33,0.00046027,7]
[358575566,1745273492690,-500.0,0.00046027,7]
[358575567,1745273492699,-500.0,0.00046027,7]
[358575568,1745273492708,-500.0,0.00046027,7]
[358575569,1745273492718,-151.0,0.00046027,14]
[358575570,1745273492728,-500.0,0.00046027,7]
[358575571,1745273492737,-623.44,0.00046027,7]
[358575572,1745273492746,-151.0,0.00046027,14]
[358575573,1745273492755,-500.0,0.00046027,7]
[358575574,1745273492764,-500.0,0.00046027,7]
[358575575,1745273492774,-500.0,0.00046027,7]
[358575576,1745273492783,-500.0,0.00046027,7]
[358575577,1745273492793,-826.96,0.00046027,7]
[358575578,1745273492802,-500.0,0.00046027,7]
[358575579,1745273492811,-500.0,0.00046027,7]
[358575580,1745273492821,-500.0,0.00046027,7]
[358575581,1745273492831,-500.0,0.00046027,7]
[358575582,1745273492840,-500.0,0.00046027,7]
[358575583,1745273492850,-519.36,0.00046027,7]
[358575584,1745273492860,-1297.18,0.00046027,7]
[358575585,1745273492869,-500.0,0.00046027,7]
[358575586,1745273492879,-500.0,0.00046027,7]
[358575587,1745273492888,-514.13,0.00046027,7]
[358575588,1745273492898,-199.10089197,0.00046027,7]
[358575589,1745273492908,-500.0,0.00046027,7]
[358575590,1745273492918,-500.0,0.00046027,7]
[358575591,1745273492927,-980.71,0.00046027,7]
[358575592,1745273492936,-500.0,0.00046027,7]
[358575593,1745273492946,-500.0,0.00046027,7]
[358575594,1745273492955,-500.0,0.00046027,7]
[358575595,1745273492965,-500.0,0.00046027,7]
[358575596,1745273492974,-500.0,0.00046027,7]
[358575597,1745273492984,-706.63,0.00046027,7]
[358575598,1745273492993,-500.0,0.00046027,7]
[358575599,1745273493002,-500.0,0.00046027,7]
[358575600,1745273493012,-579.09,0.00046027,7]
[358575601,1745273493022,-162.202351,0.00046027,14]
[358575602,1745273493032,-858.69,0.00046027,7]
[358575603,1745273493041,-500.0,0.00046027,7]
[358575604,1745273493051,-881.75,0.00046027,7]
[358575605,1745273493060,-711.53,0.00046027,7]
[358575606,1745273493070,-884.65,0.00046027,7]
[358575607,1745273493079,-500.0,0.00046027,7]
[358575608,1745273493089,-904.67,0.00046027,7]
[358575609,1745273493099,-500.0,0.00046027,7]
[358575610,1745273493109,-500.0,0.00046027,7]
[358575611,1745273493119,-1183.26,0.00046027,7]
[358575612,1745273493128,-500.0,0.00046027,7]
[358575613,1745273493138,-546.21,0.00046027,7]
[358575614,1745273493147,-500.0,0.00046027,7]
[358575615,1745273493158,-1290.34,0.00046027,7]
[358575616,1745273493168,-1419.16,0.00046027,7]
[358575617,1745273493178,-250.0,0.00046027,7]
[358575618,1745273493188,-500.0,0.00046027,7]
[358575619,1745273493198,-863.91,0.00046027,7]
[358575620,1745273493208,-1668.61,0.00046027,7]
[358575621,1745273493219,-500.0,0.00046027,7]
[358575622,1745273493228,-500.0,0.00046027,7]
[358575623,1745273493238,-1001.34,0.00046027,7]
[358575624,1745273493248,-500.0,0.00046027,7]
[358575625,1745273493257,-500.0,0.00046027,7]
[358575626,1745273493266,-500.0,0.00046027,7]
[358575627,1745273493276,-500.0,0.00046027,7]
[358575628,1745273493286,-500.0,0.00046027,7]
[358575629,1745273493296,-500.0,0.00046027,7]
[358575630,1745273493306,-2387.71,0.00046027,7]
[358575631,1745273493316,-500.0,0.00046027,7]
[358575632,1745273493325,-500.0,0.00046027,7]
[358575633,1745273493335,-500.0,0.00046027,7]
[358575634,1745273493419,-500.0,0.00046027,7]
[358575635,1745273493430,-1099.51,0.00046027,7]
[358575636,1745273493439,-341.45039347,0.00046027,7]
[358575637,1745273493450,-657.93,0.00046027,7]
[358575638,1745273493460,-500.0,0.00046027,7]
[358575639,1745273493469,-500.0,0.00046027,7]
[358575640,1745273493479,-786.17,0.00046027,7]
[358575641,1745273493490,-500.0,0.00046027,7]
[358575642,1745273493499,-1738.61,0.00046027,7]
[358575643,1745273493510,-1177.97,0.00046027,7]
[358575644,1745273493519,-1533.1,0.00046027,7]
[358575645,1745273493529,-500.0,0.00046027,7]
[358575646,1745273493539,-500.0,0.00046027,7]
[358575647,1745273493549,-601.4,0.00046027,7]
[358575648,1745273493559,-500.0,0.00046027,7]
[358575649,1745273493568,-604.48,0.00046027,7]
[358575650,1745273493578,-500.0,0.00046027,7]
[358575651,1745273493587,-500.0,0.00046027,7]
[358575652,1745273493597,-500.0,0.00046027,7]
[358575653,1745273493608,-947.57,0.00046027,7]
[358575654,1745273493618,-500.0,0.00046027,7]
[358575655,1745273493627,-500.0,0.00046027,7]
[358575656,1745273493637,-500.0,0.00046027,7]
[358575657,1745273493647,-1198.33,0.00046027,7]
[358575658,1745273493657,-779.43,0.00046027,7]
[358575659,1745273493666,-500.0,0.00046027,7]
[358575660,1745273493676,-580.05,0.00046027,7]
[358575661,1745273493685,-927.9,0.00046027,7]
[358575662,1745273493695,-500.0,0.00046027,7]
[358575663,1745273493704,-500.0,0.00046027,7]
[358575664,1745273493714,-500.0,0.00046027,7]
[358575665,1745273493723,-1505.54,0.00046027,7]
[358575666,1745273493734,-500.0,0.00046027,7]
[358575667,1745273493744,-500.0,0.00046027,7]
[358575668,1745273493754,-635.74,0.00046027,7]
[358575669,1745273493764,-500.0,0.00046027,7]
[358575670,1745273493774,-729.68,0.00046027,7]
[358575671,1745273493784,-500.0,0.00046027,7]
[358575672,1745273493793,-1567.41,0.00046027,7]
[358575673,1745273493803,-1953.23,0.00046027,7]
[358575674,1745273493813,-1438.84,0.00046027,7]
[358575675,1745273493823,-500.0,0.00046027,7]
[358575676,1745273493832,-2454.44,0.00046027,7]
[358575677,1745273493842,-500.0,0.00046027,7]
[358575678,1745273493852,-500.0,0.00046027,7]
[358575679,1745273493862,-951.19,0.00046027,7]
[358575680,1745273493871,-500.0,0.00046027,7]
[358575681,1745273493880,-500.0,0.00046027,7]
[358575682,1745273493890,-500.0,0.00046027,7]
[358575683,1745273493899,-500.0,0.00046027,7]
[358575684,1745273493909,-500.0,0.00046027,7]
[358575685,1745273493918,-500.0,0.00046027,7]
[358575686,1745273493927,-500.0,0.00046027,7]
[358575687,1745273493937,-500.0,0.00046027,7]
[358575688,1745273493946,-500.0,0.00046027,7]
[358575689,1745273493956,-500.0,0.00046027,7]
[358575690,1745273493965,-1772.65,0.00046027,7]
[358575691,1745273493975,-500.0,0.00046027,7]
[358575692,1745273493984,-500.0,0.00046027,7]
[358575693,1745273493993,-1520.58,0.00046027,7]
[358575694,1745273494002,-524.19091298,0.00046027,7]
[358575695,1745273494012,-500.0,0.00046027,7]
[358575696,1745273494022,-500.0,0.00046027,30]
[358575697,1745273494032,-1100.31,0.00046027,7]
[358575698,1745273494042,-500.0,0.00046027,7]
[358575699,1745273494052,-500.0,0.00046027,7]
[358575700,1745273494061,-500.0,0.00046027,7]
[358575701,1745273494071,-1134.03,0.00046027,7]
[358575702,1745273494081,-2906.42,0.00046027,7]
[358575703,1745273494091,-500.0,0.00046027,7]
[358575704,1745273494101,-151.0,0.00046027,14]
[358575705,1745273494111,-765.04,0.00046027,7]
[358575706,1745273494120,-500.0,0.00046027,7]
[358575707,1745273494130,-658.02,0.00046027,7]
[358575708,1745273494139,-500.0,0.00046027,7]
[358575709,1745273494150,-500.0,0.00046027,7]
[358575710,1745273494159,-702.96,0.00046027,7]
[358575711,1745273494169,-687.2,0.00046027,7]
[358575712,1745273494178,-500.0,0.00046027,7]
[358575713,1745273494188,-500.0,0.00046027,7]
[358575714,1745273494199,-1543.41,0.00046027,7]
[358575715,1745273494209,-500.0,0.00046027,7]
[358575716,1745273494219,-529.17004573,0.00046027,7]
[358575717,1745273494230,-1256.12,0.00046027,7]
[358575718,1745273494240,-500.0,0.00046027,7]
[358575719,1745273494250,-500.0,0.00046027,7]
[358575720,1745273494261,-621.72,0.00046027,7]
[358575721,1745273494271,-500.0,0.00046027,7]
[358575722,1745273494281,-500.0,0.00046027,7]
[358575723,1745273494292,-151.0,0.00046027,14]
[358575724,1745273494302,-506.68,0.00046027,7]
[358575725,1745273494312,-500.0,0.00046027,7]
[358575726,1745273494322,-500.0,0.00046027,7]
[358575727,1745273494331,-1317.58,0.00046027,7]
[358575728,1745273494340,-500.0,0.00046027,7]
[358575729,1745273494350,-500.0,0.00046027,7]
[358575730,1745273494359,-500.0,0.00046027,7]
[358575731,1745273494369,-685.99,0.00046027,7]
[358575732,1745273494379,-821.12,0.00046027,7]
[358575733,1745273494388,-479.37499888,0.00046027,7]
[358575734,1745273494399,-797.08,0.00046027,7]
[358575735,1745273494409,-1948.41,0.00046027,7]
[358575736,1745273494418,-1659.14,0.00046027,7]
[358575737,1745273494428,-1048.75,0.00046027,7]
[358575738,1745273494437,-1221.11,0.00046027,7]
[358575739,1745273494446,-500.0,0.00046027,7]
[358575740,1745273494456,-500.0,0.00046027,7]
[358575741,1745273494467,-1335.52,0.00046027,7]
[358575742,1745273494476,-500.0,0.00046027,7]
[358575743,1745273494486,-500.0,0.00046027,7]
[358575744,1745273494495,-816.95,0.00046027,7]
[358575745,1745273494505,-672.04,0.00046027,7]
[358575746,1745273494514,-183.897924,0.00046027,14]
[358575747,1745273494524,-500.0,0.00046027,7]
[358575748,1745273494534,-1122.27,0.00046027,7]
[358575749,1745273494543,-500.0,0.00046027,7]
[358575750,1745273494552,-183.897924,0.00046027,14]
[358575751,1745273494562,-500.0,0.00046027,7]
[358575752,1745273494572,-500.0,0.00046027,7]
[358575753,1745273494581,-583.75,0.00046027,7]
[358575754,1745273494591,-762.02,0.00046027,7]
[358575755,1745273494601,-941.01,0.00046027,7]
[358575756,1745273494611,-500.0,0.00046027,7]
[358575757,1745273494620,-500.0,0.00046027,7]
[358575758,1745273494630,-500.0,0.00046027,7]
[358575759,1745273494639,-500.0,0.00046027,7]
[358575760,1745273494649,-514.93066914,0.00046027,7]
[358575761,1745273494658,-500.0,0.00046027,7]
[358575762,1745273494667,-500.0,0.00046027,7]
[358575763,1745273494677,-500.0,0.00046027,7]
[358575764,1745273494686,-500.0,0.00046027,7]
[358575765,1745273494696,-500.0,0.00046027,7]
[358575766,1745273494706,-500.0,0.00046027,7]
[358575767,1745273494715,-377.31937527,0.00046027,7]
[358575768,1745273494724,-500.0,0.00046027,7]
[358575769,1745273494734,-500.0,0.00046027,7]
[358575770,1745273494743,-500.0,0.00046027,7]
[358575771,1745273494753,-500.0,0.00046027,7]
[358575772,1745273494766,-500.0,0.00046027,7]
[358575773,1745273494775,-500.0,0.00046027,7]
[358575774,1745273494785,-500.0,0.00046027,7]
[358575775,1745273494795,-1158.5,0.00046027,7]
[358575776,1745273494805,-500.0,0.00046027,7]
[358575777,1745273494814,-772.47,0.00046027,7]
[358575778,1745273494824,-500.0,0.00046027,7]
[358575779,1745273494833,-500.0,0.00046027,7]
[358575780,1745273494843,-500.0,0.00046027,7]
[358575781,1745273494852,-159.768622,0.00046027,14]
[358575782,1745273494862,-500.0,0.00046027,7]
[358575783,1745273494872,-500.0,0.00046027,7]
[358575784,1745273494882,-500.0,0.00046027,7]
[358575785,1745273494891,-543.95831984,0.00046027,7]
[358575786,1745273494901,-500.0,0.00046027,7]
[358575787,1745273494911,-159.768622,0.00046027,14]
[358575788,1745273494920,-583.01,0.00046027,7]
[358575789,1745273494930,-500.0,0.00046027,7]
[358575790,1745273494940,-500.0,0.00046027,7]
[358575791,1745273494950,-500.0,0.00046027,7]
[358575792,1745273494959,-151.0,0.00046027,14]
[358575793,1745273494968,-500.0,0.00046027,7]
[358575794,1745273494978,-500.0,0.00046027,7]
[358575795,1745273494987,-500.0,0.00046027,7]
[358575796,1745273494997,-973.17,0.00046027,7]
[358575797,1745273495009,-500.0,0.00046027,7]
[358575798,1745273495019,-500.0,0.00046027,7]
[358575799,1745273495028,-867.69,0.00046027,7]
[358575800,1745273495038,-582.63281533,0.00046027,7]
[358575801,1745273495048,-901.45,0.00046027,7]
[358575802,1745273495058,-1047.72,0.00046027,7]
[358575803,1745273495068,-996.82,0.00046027,7]
[358575804,1745273495077,-500.0,0.00046027,7]
[358575805,1745273495086,-500.0,0.00046027,7]
[358575806,1745273495096,-1136.8,0.00046027,7]
[358575807,1745273495105,-1393.67,0.00046027,7]
[358575808,1745273495114,-919.49,0.00046027,7]
[358575809,1745273495123,-1952.74,0.00046027,7]
[358575810,1745273495133,-500.0,0.00046027,2]
[358575811,1745273495142,-1469.516003,0.00046027,14]
[358575812,1745273495152,-500.0,0.00046027,7]
[358575813,1745273495162,-3067.74,0.00046027,7]
[358575814,1745273495171,-1469.516003,0.00046027,14]
[358575815,1745273495181,-500.0,0.00046027,7]
[358575816,1745273495190,-500.0,0.00046027,7]
[358575817,1745273495200,-1668.15,0.00046027,7]
[358575818,1745273495209,-500.0,0.00046027,7]
[358575819,1745273495218,-1022.68,0.00046027,7]
[358575820,1745273495228,-500.0,0.00046027,7]
[358575821,1745273495238,-500.0,0.00046027,7]
[358575822,1745273495247,-896.677004,0.00046027,14]
[358575823,1745273495258,-662.83,0.00046027,7]
[358575824,1745273495268,-500.0,0.00046027,7]
[358575825,1745273495278,-500.0,0.00046027,7]
[358575826,1745273495287,-1574.74,0.00046027,7]
[358575827,1745273495297,-896.677004,0.00046027,14]
[358575828,1745273495307,-500.0,0.00046027,7]
[358575829,1745273495317,-1020.13,0.00046027,7]
[358575830,1745273495327,-500.0,0.00046027,7]
[358575831,1745273495337,-574.9,0.00046027,7]
[358575832,1745273495347,-981.52,0.00046027,7]
[358575833,1745273495358,-956.86,0.00046027,7]
[358575834,1745273495367,-500.0,0.00046027,7]
[358575835,1745273495377,-673.68,0.00046027,7]
[358575836,1745273495386,-500.0,0.00046027,7]
[358575837,1745273495397,-151.0,0.00046027,14]
[358575838,1745273495414,-500.0,0.00046027,7]
[358575839,1745273495424,-1117.56,0.00046027,7]
[358575840,1745273495434,-500.0,0.00046027,7]
[358575841,1745273495444,-151.0,0.00046027,14]
[358575842,1745273495457,-500.0,0.00046027,7]
[358575843,1745273495467,-500.0,0.00046027,7]
[358575844,1745273495476,-1471.8,0.00046027,7]
[358575845,1745273495486,-500.0,0.00046027,7]
[358575846,1745273495496,-500.0,0.00046027,7]
[358575847,1745273495505,-1910.22,0.00046027,7]
[358575848,1745273495516,-1450.05,0.00046027,7]
[358575849,1745273495525,-193.4110779,0.00046027,7]
[358575850,1745273495535,-500.0,0.00046027,7]
[358575851,1745273495545,-500.0,0.00046027,7]
[358575852,1745273495555,-500.0,0.00046027,7]
[358575853,1745273495565,-997.29,0.00046027,7]
[358575854,1745273495575,-250.3123469,0.00046027,7]
[358575855,1745273495584,-500.0,0.00046027,7]
[358575856,1745273495593,-525.77,0.00046027,7]
[358575857,1745273495602,-500.0,0.00046027,7]
[358575858,1745273495612,-1056.06,0.00046027,7]
[358575859,1745273495622,-3115.83,0.00046027,7]
[358575860,1745273495631,-3275.5,0.00046027,7]
[358575861,1745273495641,-1074.12,0.00046027,7]
[358575862,1745273495650,-1721.58,0.00046027,7]
[358575863,1745273495660,-500.0,0.00046027,7]
[358575864,1745273495670,-500.0,0.00046027,7]
[358575865,1745273495679,-500.0,0.00046027,7]
[358575866,1745273495689,-500.0,0.00046027,7]
[358575867,1745273495699,-500.0,0.00046027,7]
[358575868,1745273495709,-500.0,0.00046027,7]
[358575869,1745273495718,-1422.93,0.00046027,7]
[358575870,1745273495728,-500.0,0.00046027,7]
[358575871,1745273495738,-500.0,0.00046027,7]
[358575872,1745273495747,-500.0,0.00046027,7]
[358575873,1745273495757,-834.44,0.00046027,7]
[358575874,1745273495767,-500.0,0.00046027,7]
[358575875,1745273495777,-743.09,0.00046027,7]
[358575876,1745273495786,-2831.35,0.00046027,7]
[358575877,1745273495795,-3209.48,0.00046027,7]
[358575878,1745273495804,-500.0,0.00046027,7]
[358575879,1745273495814,-500.0,0.00046027,7]
[358575880,1745273495823,-671.48,0.00046027,7]
[358575881,1745273495833,-500.0,0.00046027,7]
[358575882,1745273495843,-500.0,0.00046027,7]
[358575883,1745273495853,-583.29,0.00046027,7]
[358575884,1745273495862,-500.0,0.00046027,7]
[358575885,1745273495872,-973.67,0.00046027,7]
[358575886,1745273495882,-500.0,0.00046027,7]
[358575887,1745273495891,-1070.05,0.00046027,7]
[358575888,1745273495901,-1375.34,0.00046027,7]
[358575889,1745273495910,-500.0,0.00046027,7]
[358575890,1745273495920,-500.0,0.00046027,7]
[358575891,1745273495929,-7001.07,0.00046027,7]
[358575892,1745273495939,-2437.85,0.00046027,7]
[358575893,1745273495948,-500.0,0.00046027,7]
[358575894,1745273495958,-500.0,0.00046027,7]
[358575895,1745273495967,-2289.63,0.00046027,7]
[358575896,1745273495977,-780.148884,0.00046027,14]
[358575897,1745273495987,-500.0,0.00046027,7]
[358575898,1745273495996,-1522.45,0.00046027,7]
[358575899,1745273496006,-500.0,0.00046027,7]
[358575900,1745273496015,-274.417181,0.00046027,14]
[358575901,1745273496025,-829.97,0.00046027,7]
[358575902,1745273496035,-148396.62,0.00046027,7]
[358575903,1745273496046,-780.148884,0.00046027,14]
[358575904,1745273496055,-1573.28,0.00046027,7]
[358575905,1745273496065,-783.77,0.00046027,7]
[358575906,1745273496074,-274.417181,0.00046027,14]
[358575907,1745273496084,-500.0,0.00046027,7]
[358575908,1745273496093,-2454.7,0.00046027,7]
[358575909,1745273496102,-500.0,0.00046027,7]
[358575910,1745273496113,-500.0,0.00046027,7]
[358575911,1745273496123,-527.57,0.00046027,7]
[358575912,1745273496135,-612.25,0.00046027,7]
[358575913,1745273496145,-1343.12,0.00046027,7]
[358575914,1745273496157,-500.0,0.00046027,7]
[358575915,1745273496167,-2236.11,0.00046027,7]
[358575916,1745273496177,-500.0,0.00046027,7]
[358575917,1745273496186,-500.0,0.00046027,7]
[358575918,1745273496195,-963.95,0.00046027,7]
[358575919,1745273496206,-997.67,0.00046027,7]
[358575920,1745273496216,-500.0,0.00046027,7]
[358575921,1745273496227,-1289.89,0.00046027,7]
[358575922,1745273496238,-655.96,0.00046027,7]
[358575923,1745273496247,-678.03,0.00046027,7]
[358575924,1745273496257,-569.75,0.00046027,7]
[358575925,1745273496266,-500.0,0.00046027,7]
[358575926,1745273496276,-1596.74,0.00046027,7]
[358575927,1745273496285,-3240.43,0.00046027,7]
[358575928,1745273496295,-500.0,0.00046027,7]
[358575929,1745273496305,-209.126942,0.00046027,14]
[358575930,1745273496314,-518.73,0.00046027,7]
[358575931,1745273496324,-500.0,0.00046027,7]
[358575932,1745273496334,-891.42,0.00046027,7]
[358575933,1745273496343,-1959.65,0.00046027,7]
[358575934,1745273496353,-209.126942,0.00046027,14]
[358575935,1745273496362,-511.37,0.00046027,7]
[358575936,1745273496372,-804.59,0.00046027,7]
[358575937,1745273496382,-2145.1,0.00046027,7]
[358575938,1745273496391,-500.0,0.00046027,7]
[358575939,1745273496403,-5109.84,0.00046027,7]
[358575940,1745273496413,-500.0,0.00046027,7]
[358575941,1745273496423,-500.0,0.00046027,7]
[358575942,1745273496432,-500.0,0.00046027,7]
[358575943,1745273496443,-561.55,0.00046027,7]
[358575944,1745273496454,-1484.19,0.00046027,7]
[358575945,1745273496463,-500.0,0.00046027,7]
[358575946,1745273496473,-1100.11,0.00046027,7]
[358575947,1745273496484,-859.56,0.00046027,7]
[358575948,1745273496498,-500.0,0.00046027,7]
[358575949,1745273496509,-500.0,0.00046027,7]
[358575950,1745273496519,-574.2,0.00046027,7]
[358575951,1745273496532,-500.0,0.00046027,7]
[358575952,1745273496543,-2581.69,0.00046027,7]
[358575953,1745273496554,-500.0,0.00046027,7]
[358575954,1745273496565,-1348.97,0.00046027,7]
[358575955,1745273496575,-596.37,0.00046027,7]
[358575956,1745273496584,-500.0,0.00046027,7]
[358575957,1745273496594,-889.4,0.00046027,7]
[358575958,1745273496604,-948.97,0.00046027,7]
[358575959,1745273496613,-868.91,0.00046027,7]
[358575960,1745273496623,-500.0,0.00046027,7]
[358575961,1745273496633,-450.16045526,0.00046027,7]
[358575962,1745273496644,-2009.27,0.00046027,7]
[358575963,1745273496654,-500.0,0.00046027,7]
[358575964,1745273496665,-717.21,0.00046027,7]
[358575965,1745273496675,-500.0,0.00046027,7]
[358575966,1745273496685,-1570.7,0.00046027,7]
[358575967,1745273496694,-500.0,0.00046027,7]
[358575968,1745273496703,-500.0,0.00046027,7]
[358575969,1745273496714,-151.0,0.00046027,14]
[358575970,1745273496723,-500.0,0.00046027,7]
[358575971,1745273496733,-1677.09,0.00046027,7]
[358575972,1745273496743,-1058.05,0.00046027,7]
[358575973,1745273496752,-500.0,0.00046027,7]
[358575974,1745273496762,-1248.18,0.00046027,7]
[358575975,1745273496772,-508.66,0.00046027,7]
[358575976,1745273496782,-500.0,0.00046027,7]
[358575977,1745273496791,-616.38,0.00046027,7]
[358575978,1745273496801,-2278.19,0.00046027,7]
[358575979,1745273496811,-1336.46,0.00046027,7]
[358575980,1745273496823,-2099.91,0.00046027,7]
[358575981,1745273496835,-500.0,0.00046027,7]
[358575982,1745273496848,-500.0,0.00046027,7]
[358575983,1745273496860,-500.0,0.00046027,7]
[358575984,1745273496870,-500.0,0.00046027,7]
[358575985,1745273496879,-351.57238919,0.00046027,7]
[358575986,1745273496889,-1053.78,0.00046027,7]
[358575987,1745273496898,-2998.83,0.00046027,7]
[358575988,1745273496907,-831.47,0.00046027,7]
[358575989,1745273496917,-500.0,0.00046027,7]
[358575990,1745273496927,-1357.54,0.00046027,7]
[358575991,1745273496936,-500.0,0.00046027,7]
[358575992,1745273496945,-743.94,0.00046027,7]
[358575993,1745273496955,-1579.09,0.00046027,7]
[358575994,1745273496965,-500.0,0.00046027,7]
[358575995,1745273496974,-2781.12,0.00046027,7]
[358575996,1745273496984,-1075.24,0.00046027,7]
[358575997,1745273496993,-592.06,0.00046027,7]
[358575998,1745273497003,-500.0,0.00046027,7]
[358575999,1745273497012,-575.54,0.00046027,7]
[358576000,1745273497022,-1561.76,0.00046027,7]
[358576001,1745273497032,-1637.73,0.00046027,7]
[358576002,1745273497042,-1456.28,0.00046027,7]
[358576003,1745273497052,-500.0,0.00046027,7]
[358576004,1745273497062,-2605.24,0.00046027,7]
[358576005,1745273497071,-853.74,0.00046027,7]
[358576006,1745273497083,-2212.34,0.00046027,7]
[358576007,1745273497093,-2220.57,0.00046027,7]
[358576008,1745273497104,-598.39,0.00046027,7]
[358576009,1745273497114,-901.27,0.00046027,7]
[358576010,1745273497125,-578.81,0.00046027,7]
[358576011,1745273497136,-500.0,0.00046027,7]
[358576012,1745273497147,-500.0,0.00046027,7]
[358576013,1745273497158,-500.0,0.00046027,7]
[358576014,1745273497169,-1275.11,0.00046027,7]
[358576015,1745273497179,-400.29072831,0.00046027,7]
[358576016,1745273497189,-500.0,0.00046027,7]
[358576017,1745273497199,-500.0,0.00046027,7]
[358576018,1745273497209,-2355.08,0.00046027,7]
[358576019,1745273497219,-1605.45,0.00046027,7]
[358576020,1745273497229,-2547.52,0.00046027,7]
[358576021,1745273497239,-500.0,0.00046027,7]
[358576022,1745273497249,-500.0,0.00046027,7]
[358576023,1745273497259,-500.0,0.00046027,7]
[358576024,1745273497269,-500.0,0.00046027,7]